bitfinex/quotes_ETHUSD_20250814
["timestamp","ask_amount","ask_price","bid_price","bid_amount"]
[1755182956083,0.002,4686.2,4686.1,7.03187067]
[1755182956294,0.002,4686.2,4686.1,6.57007067]
[1755182956792,0.002,4686.2,4686.1,6.00017067]
[1755182956999,0.002,4686.2,4686.1,7.03267067]
[1755182957564,0.002,4686.2,4686.1,8.46134321]
[1755182958004,0.002,4686.2,4686.1,8.45834321]
[1755182958178,0.002,4686.2,4686.1,1.53587254]
[1755182958374,0.002,4686.2,4686.1,2.24117067]
[1755182958599,0.002,4686.2,4686.1,5.99717067]
[1755182958775,0.002,4686.2,4686.1,3.8632]
[1755182959097,0.002,4686.2,4686.1,0.1072]
[1755182959401,0.6584,4686.2,4686.1,3.7568]
[1755182959613,1.23803,4686.2,4686.1,3.7568]
[1755182959819,0.1084,4686.2,4686.1,0.0008]
[1755182959964,0.1084,4686.2,4686.1,3.7558]
[1755182960171,0.1076,4686.2,4686.1,0.0008]
[1755182960401,0.55,4686.1,4685.9,5.12]
[1755182960616,3.70891621,4686.0,4685.9,5.12]
[1755182960907,0.1076,4686.2,4685.9,8.874]
[1755182961082,0.0012,4686.2,4686.0,2.13401621]
[1755182961281,0.0012,4686.2,4685.9,8.874]
[1755182961484,0.0012,4686.2,4686.1,2.13397067]
[1755182961796,0.0012,4686.2,4686.1,3.17737067]
[1755182961976,0.0012,4686.2,4686.1,3.28377067]
[1755182962579,0.0012,4686.2,4686.1,3.30511037]
[1755182962778,0.0012,4686.2,4686.1,7.03577067]
[1755182963086,0.0012,4686.2,4686.1,8.6637565]
[1755182963581,0.0012,4686.2,4686.1,7.5119565]
[1755182963980,0.0012,4686.2,4686.1,2.24117067]
[1755182964314,0.0012,4686.2,4686.1,5.99217067]
[1755182965809,0.0012,4686.2,4686.1,2.24117067]
[1755182966016,0.0012,4686.2,4686.1,5.99117067]
[1755182966309,0.0012,4686.2,4686.1,7.03457067]
[1755182966514,0.0012,4686.2,4686.1,3.6619709]
[1755182966679,0.0012,4686.2,4686.1,7.4109709]
[1755182967082,0.0012,4686.2,4686.1,7.5173709]
[1755182967530,0.0012,4686.2,4686.1,5.98917067]
[1755182967741,0.0012,4686.2,4686.1,2.24117067]
[1755182968221,0.0012,4686.2,4686.1,5.98917067]
[1755182969288,0.0012,4686.2,4686.1,5.98817067]
[1755182969723,0.0012,4686.2,4686.1,0.0008]
[1755182969894,1.5558,4686.2,4686.1,3.7478]
[1755182970222,0.5512,4686.2,4686.1,3.7478]
[1755182970928,0.5512,4686.2,4686.1,3.7468]
[1755182971097,0.5512,4686.2,4686.1,3.7458]
[1755182972027,0.0012,4686.2,4686.1,5.87977067]
[1755182972227,0.0012,4686.2,4686.1,7.29955162]
[1755182973117,0.0012,4686.2,4686.1,5.98517067]
[1755182973321,0.002,4686.7,4686.2,0.00548543]
[1755182973533,0.002,4686.7,4686.4,2.13383407]
[1755182973699,0.4311,4686.7,4686.5,3.744]
[1755182974029,0.4291,4686.6,4686.5,3.744]
[1755182974330,0.4291,4686.6,4686.2,0.00628543]
[1755182974512,1.661,4686.5,4686.3,3.743]
[1755182974729,0.002,4686.7,4686.4,2.13383407]
[1755182974935,0.002,4686.7,4686.5,3.743]
[1755182975649,0.552,4686.7,4686.6,3.742]
[1755182975811,0.55,4686.5,4686.2,0.00628543]
[1755182976011,1.5546,4686.4,4686.3,3.742]
[1755182976244,0.55,4686.3,4686.2,0.00628543]
[1755182976430,0.55,4686.3,4686.2,3.74828543]
[1755182976751,1.5546,4686.3,4686.2,3.74728543]
[1755182977111,1.5546,4686.3,4685.5,1.83692039]
[1755182977410,1.5546,4686.3,4685.7,2.13411412]
[1755182977621,0.1064,4686.4,4685.5,0.1064]
[1755182977806,0.1064,4686.4,4685.9,2.13404599]
[1755182978033,0.55,4686.3,4685.5,0.1064]
[1755182978234,0.1064,4686.4,4685.5,0.1064]
[1755182978235,0.1064,4686.4,4686.2,2.13392514]
[1755182978435,0.002,4686.7,4686.4,2.13379932]
[1755182978436,0.1064,4686.6,4686.4,2.13379932]
[1755182978607,0.1064,4686.6,4686.5,3.74]
[1755182979647,0.002,4686.7,4686.5,3.74]
[1755182980146,0.002,4686.7,4686.6,2.13374301]
[1755182980648,0.002,4686.7,4686.6,2.95583709]
[1755182980846,0.002,4686.7,4686.6,4.08429966]
[1755182981548,0.002,4686.7,4686.6,5.97714301]
[1755182981767,0.002,4686.7,4686.6,2.24014301]
[1755182981914,0.002,4686.7,4686.6,7.02054301]
[1755182982343,0.0012,4686.7,4686.6,7.02054301]
[1755182983452,0.0012,4686.7,4686.6,3.28354301]
[1755182983654,0.0012,4686.7,4686.6,2.32546901]
[1755182983819,0.0012,4686.7,4686.6,2.24014301]
[1755182984017,0.0012,4686.7,4686.6,7.01854301]
[1755182984213,0.0012,4686.7,4686.6,9.31574857]
[1755182984925,0.0012,4686.7,4686.6,4.53734857]
[1755182985128,0.0012,4686.7,4686.6,6.06047301]
[1755182985311,0.0012,4686.7,4686.6,6.05947301]
[1755182985524,0.0012,4686.7,4686.6,5.97414301]
[1755182985724,0.0012,4686.7,4686.6,6.05947301]
[1755182985942,0.0012,4686.7,4686.6,2.32547301]
[1755182986139,0.0012,4686.7,4686.6,8.16474203]
[1755182986470,0.0012,4686.7,4686.6,7.12134203]
[1755182986632,0.0012,4686.7,4686.6,8.16474203]
[1755182986842,0.0012,4686.7,4686.6,7.70844203]
[1755182987020,0.0012,4686.7,4686.6,7.12134203]
[1755182987759,0.0012,4686.7,4686.6,3.38734203]
[1755182987936,0.0012,4686.7,4686.6,5.97214301]
[1755182992943,0.0012,4686.7,4686.6,5.97294301]
[1755182993144,0.0012,4686.7,4686.6,2.24094301]
[1755182993351,0.0012,4686.7,4686.6,5.96794301]
[1755182993561,0.0012,4686.7,4686.6,2.24094301]
[1755182993858,1.574,4686.7,4686.6,3.7278]
[1755182994045,1.7314,4686.7,4686.6,3.7278]
[1755182994428,3.86509748,4686.7,4686.6,3.7268]
[1755182994766,1.7314,4686.7,4686.6,0.0008]
[1755182994921,6.86509748,4686.7,4686.6,3.7268]
[1755182996365,6.86509748,4686.7,4686.6,0.0008]
[1755182996566,6.86509748,4686.7,4686.6,3.7258]
[1755182997327,6.97149748,4686.7,4686.6,3.7258]
[1755182997771,6.97149748,4686.7,4686.6,0.0008]
[1755182998573,2.68392514,4686.2,4686.1,0.001]
[1755182998739,7.59490336,4686.2,4686.1,0.001]
[1755182998941,7.59490336,4686.2,4686.1,3.724]
[1755182999157,4.6792,4686.2,4686.1,3.724]
[1755182999346,3.81312514,4686.2,4686.1,0.001]
[1755182999559,1.6792,4686.2,4686.1,3.724]
[1755182999865,3.81312514,4686.2,4686.1,0.001]
[1755183000060,1.6792,4686.2,4686.1,3.723]
[1755183000257,3.81312514,4686.2,4686.1,0.001]
[1755183000456,4.70781184,4686.2,4686.1,3.723]
[1755183000660,7.70781184,4686.2,4686.1,3.723]
[1755183002276,3.0,4686.1,4685.1,0.001]
[1755183002577,5.68456284,4684.8,4684.7,0.001]
[1755183002871,2.68479068,4684.3,4684.2,0.001]
[1755183003044,6.70759068,4684.3,4684.2,0.0018]
[1755183006296,6.81276249,4684.3,4684.2,0.0018]
[1755183006492,7.13599432,4684.3,4684.2,0.0018]
[1755183006941,7.03082251,4684.3,4684.2,0.0018]
[1755183007390,2.13501857,4683.8,4683.7,0.001]
[1755183007687,6.70781857,4683.8,4683.7,0.001]
[1755183008240,10.42481857,4683.8,4683.7,1e-08]
[1755183008469,2.6854745,4682.8,4682.7,1e-08]
[1755183008690,10.4252745,4682.8,4682.7,1e-08]
[1755183008985,0.55,4681.9,4681.7,0.001]
[1755183009187,5.685885,4681.9,4681.7,0.001]
[1755183009388,6.708685,4681.9,4681.7,0.001]
[1755183009679,7.47946618,4681.9,4681.7,0.001]
[1755183010440,7.63960109,4681.9,4681.7,0.001]
[1755183010973,5.84601991,4681.9,4681.7,0.001]
[1755183011178,3.71013491,4681.9,4681.7,0.001]
[1755183011376,3.16013491,4681.9,4681.7,0.001]
[1755183011583,3.0,4681.9,4681.7,0.001]
[1755183011782,5.84384512,4681.9,4681.7,0.001]
[1755183012148,6.47162963,4681.9,4681.7,0.001]
[1755183012354,7.49442963,4681.9,4681.7,0.001]
[1755183012550,7.01202963,4681.9,4681.7,0.001]
[1755183013065,6.57802963,4681.9,4681.7,0.001]
[1755183013268,3.1064,4681.9,4681.7,0.001]
[1755183013491,0.1064,4681.9,4681.8,6.86283062]
[1755183013804,0.1064,4682.8,4681.8,1.1193]
[1755183013969,0.25967466,4684.3,4681.9,3.714]
[1755183013970,0.434,4683.4,4681.9,3.714]
[1755183014176,0.31579229,4683.3,4682.0,5.84983938]
[1755183014481,0.434,4684.0,4682.0,4.7259]
[1755183014651,0.1064,4682.6,4682.0,1.0119]
[1755183014855,0.1064,4682.6,4681.9,0.1064]
[1755183015295,0.55,4682.5,4681.9,0.1064]
[1755183015451,0.1064,4682.0,4681.9,2.13584074]
[1755183015656,0.55,4682.2,4681.9,4.2415754]
[1755183015970,0.55,4682.8,4681.8,0.001]
[1755183016289,0.16091608,4683.3,4681.8,0.001]
[1755183016290,2.792285,4681.9,4681.8,0.001]
[1755183016501,6.815085,4681.9,4681.8,0.001]
[1755183017194,5.68593062,4681.8,4681.7,1e-08]
[1755183017492,2.68625002,4681.1,4681.0,1e-08]
[1755183017672,5.68625002,4681.1,4681.0,1e-08]
[1755183017867,5.68625002,4681.1,4680.5,1e-08]
[1755183017868,2.68647822,4680.6,4680.5,1e-08]
[1755183018193,5.68698044,4679.5,4679.4,1e-08]
[1755183018443,11.31036896,4679.5,4679.4,1e-08]
[1755183018557,0.55,4679.3,4677.0,5.12]
[1755183018762,8.62338852,4679.5,4677.0,5.12]
[1755183018763,0.1072,4677.3,4677.0,5.12]
[1755183019069,0.55,4677.2,4676.6,3.8172]
[1755183019271,0.55,4677.2,4676.1,0.5713]
[1755183019272,0.5888,4677.1,4676.1,0.5713]
[1755183019496,0.5888,4677.1,4671.9,2.69688672]
[1755183019497,1.94714882,4677.0,4674.8,1.0119]
[1755183019659,0.55,4676.1,4674.9,0.02139083]
[1755183019853,0.55,4676.5,4674.8,3.15102528]
[1755183020057,2.68859229,4676.0,4674.8,3.15099307]
[1755183020360,0.55,4676.0,4674.8,1.0119]
[1755183020556,0.55,4675.5,4674.8,1.0119]
[1755183020763,2.40745858,4676.0,4674.8,1.0119]
[1755183020764,0.55,4675.7,4674.8,1.0119]
[1755183020985,4.0228,4676.6,4674.8,1.0119]
[1755183021190,0.55,4675.1,4674.3,0.4406]
[1755183021500,3.55,4676.2,4675.1,2.13896367]
[1755183021716,3.55,4676.2,4675.0,1.0129]
[1755183021717,0.55,4676.5,4675.2,1.28528637]
[1755183021921,2.1381901,4676.9,4675.7,2.13868741]
[1755183022067,2.13768938,4678.0,4675.9,2.13862571]
[1755183022264,1.0256,4678.0,4676.0,0.9701]
[1755183022489,2.13789417,4677.5,4675.4,0.9701]
[1755183022690,0.55,4677.1,4675.3,3.709]
[1755183022905,1.18346,4677.0,4675.4,0.0008]
[1755183023074,0.4344,4678.3,4675.5,0.9701]
[1755183023273,0.4344,4678.7,4676.8,2.13819377]
[1755183023526,2.13767548,4678.0,4676.8,0.9701]
[1755183023738,2.13747629,4678.5,4676.8,0.5395]
[1755183023898,2.29923782,4678.8,4677.4,2.13792924]
[1755183024097,0.16192119,4678.8,4676.9,1.39495]
[1755183024319,0.4344,4679.3,4676.9,1.39495]
[1755183024533,2.13768714,4678.0,4676.9,0.9701]
[1755183024739,2.1374653,4678.5,4676.9,4.6791]
[1755183024996,0.10686563,4679.4,4678.0,2.13766103]
[1755183024997,0.16139878,4679.1,4678.0,2.13766103]
[1755183025428,0.16139878,4679.1,4678.1,4.6781]
[1755183025629,0.16139878,4679.1,4677.2,22.86285079]
[1755183025630,0.16139878,4679.1,4679.0,2.1372088]
[1755183025855,0.16139878,4679.1,4678.3,0.9701]
[1755183026058,2.13651834,4680.6,4679.3,2.13706435]
[1755183026201,0.19595679,4680.9,4678.4,3.708]
[1755183026202,0.19595679,4680.9,4679.4,0.02137026]
[1755183026400,0.4344,4681.7,4679.5,0.9914698]
[1755183026636,0.4344,4681.7,4679.5,0.9701]
[1755183026637,0.84822463,4681.6,4679.5,0.9701]
[1755183026944,0.5912,4681.6,4679.5,0.9701]
[1755183027100,0.1960559,4682.2,4679.6,0.9701]
[1755183027302,0.4344,4682.3,4680.5,2.13651983]
[1755183027498,0.1960559,4682.8,4680.5,4.6771]
[1755183027499,0.16084988,4682.6,4680.5,4.6771]
[1755183027720,2.13582339,4682.1,4680.5,4.6771]
[1755183027921,0.4344,4682.8,4681.0,2.1362946]
[1755183028119,2.1355201,4682.7,4680.7,0.02136432]
[1755183028329,2.13583878,4682.1,4681.0,2.1362904]
[1755183028549,0.4344,4682.8,4680.6,0.46771]
[1755183028755,2.13661071,4680.4,4678.4,0.5395]
[1755183029055,51.3160301,4682.7,4676.3,0.1]
[1755183029056,2.13662018,4680.3,4679.1,2.13716312]
[1755183029270,0.55,4679.6,4679.0,0.6467]
[1755183029617,0.55,4679.6,4679.0,0.1072]
[1755183029823,0.55,4679.1,4678.5,3.8122]
[1755183030021,0.55,4678.8,4678.5,3.705]
[1755183030469,0.6572,4678.6,4678.5,3.705]
[1755183031804,0.55,4678.5,4677.9,0.1072]
[1755183031976,0.55,4678.5,4677.7,2.13780276]
[1755183032301,0.55,4678.2,4677.6,6.48950498]
[1755183032484,0.55,4678.2,4677.7,3.703]
[1755183032842,0.82946569,4678.2,4677.7,3.703]
[1755183033094,0.82946569,4678.2,4678.0,40.0]
[1755183033095,0.9844,4678.2,4678.0,40.0]
[1755183033383,5.68761997,4678.1,4678.0,40.0]
[1755183033566,5.79481997,4678.1,4678.0,40.0]
[1755183033759,6.82041997,4678.1,4678.0,40.0]
[1755183034349,7.01772712,4678.1,4678.0,40.0]
[1755183034551,7.93325448,4678.1,4678.0,40.0]
[1755183035603,7.01772712,4678.1,4678.0,40.0]
[1755183035751,5.88492712,4678.1,4678.0,40.0]
[1755183035947,2.13775706,4677.8,4677.7,0.0008]
[1755183036152,6.22935706,4677.8,4677.7,0.0008]
[1755183036413,5.99226421,4677.8,4677.7,0.0008]
[1755183036557,4.72249794,4677.8,4677.7,0.0008]
[1755183036753,0.55,4677.7,4676.6,0.5378]
[1755183036949,3.0,4678.1,4676.6,0.5378]
[1755183036950,0.1072,4677.3,4676.6,0.5378]
[1755183037205,0.1072,4677.3,4677.2,2.13802088]
[1755183037422,0.19754081,4678.7,4677.2,1.50491236]
[1755183037555,0.1072,4678.1,4678.0,2.13763652]
[1755183037888,0.1072,4678.5,4677.8,0.1072]
[1755183038090,0.1072,4678.5,4678.4,2.1374829]
[1755183038587,3.701,4680.5,4678.4,2.1374829]
[1755183038588,0.1072,4679.2,4679.1,2.13716312]
[1755183038801,0.1072,4679.2,4679.1,6.80726312]
[1755183038979,0.1072,4679.2,4679.1,7.70171283]
[1755183039486,0.4344,4681.1,4679.1,7.70171283]
[1755183039487,0.1072,4680.0,4679.7,2.13684492]
[1755183039669,0.1072,4680.0,4679.7,2.13685252]
[1755183040071,0.19758179,4680.6,4679.7,0.9701]
[1755183040276,0.1072,4680.2,4679.8,0.02136843]
[1755183040467,0.1072,4680.2,4679.9,5.83579779]
[1755183040804,0.16388183,4681.3,4680.0,3.85156738]
[1755183040805,0.1072,4680.7,4680.0,3.85156738]
[1755183041023,0.1072,4680.7,4680.0,0.6467]
[1755183041296,0.1072,4680.3,4679.9,3.699]
[1755183041497,0.1072,4680.3,4679.2,0.5395]
[1755183041498,0.1072,4680.3,4680.0,3.698]
[1755183041700,2.89124641,4681.3,4679.8,3.698]
[1755183041701,0.55,4680.1,4679.8,3.698]
[1755183041914,1.0256,4680.2,4678.9,0.1072]
[1755183041915,0.6572,4679.9,4678.9,0.1072]
[1755183042194,0.6572,4679.9,4678.7,0.4306]
[1755183042195,0.1072,4679.3,4679.0,3.698]
[1755183042422,0.1072,4680.4,4679.8,0.1072]
[1755183042555,0.1072,4680.4,4679.9,3.697]
[1755183042759,0.16388183,4681.3,4679.9,3.697]
[1755183042988,0.6572,4680.0,4679.9,3.697]
[1755183043283,0.6572,4680.0,4678.6,2.13739031]
[1755183043284,1.45839174,4680.0,4679.4,3.697]
[1755183043483,1.45839174,4680.0,4678.6,3.697]
[1755183043484,3.5492,4679.4,4678.6,3.697]
[1755183043705,0.1072,4679.1,4678.6,3.697]
[1755183043990,0.1072,4678.7,4678.6,3.697]
[1755183044678,3.0,4679.5,4678.6,3.697]
[1755183045004,0.75503564,4679.4,4678.6,3.697]
[1755183045169,0.1072,4678.9,4678.6,3.697]
[1755183045557,0.55,4678.8,4678.7,3.695]
[1755183046368,3.74827047,4678.8,4678.0,0.1072]
[1755183046692,0.1072,4678.5,4678.2,3.695]
[1755183047099,0.55,4679.7,4678.5,2.13741068]
[1755183047275,0.4344,4679.8,4678.8,2.13729224]
[1755183047276,0.55,4679.5,4678.8,2.13729224]
[1755183047475,0.55,4679.5,4678.3,0.9701]
[1755183047476,0.55,4679.3,4678.9,3.694]
[1755183047687,0.55,4679.3,4678.2,0.38022]
[1755183047688,0.1983128,4679.2,4678.2,0.38022]
[1755183047994,2.13699244,4679.5,4678.3,3.694]
[1755183048194,0.55,4679.3,4678.3,3.694]
[1755183048402,0.55,4679.1,4677.9,0.4306]
[1755183048593,0.55,4678.7,4678.0,3.694]
[1755183048905,0.55,4678.5,4678.1,3.694]
[1755183049109,0.55,4678.5,4676.8,5.6645]
[1755183049110,2.68752858,4678.3,4678.2,3.694]
[1755183049261,2.68752858,4678.3,4676.8,5.6645]
[1755183049262,1.22393187,4678.3,4677.0,3.693]
[1755183049464,2.13807701,4677.1,4677.0,3.693]
[1755183050064,2.13807701,4677.1,4676.8,5.125]
[1755183050258,2.13816844,4676.9,4676.8,5.125]
[1755183050494,2.13816844,4676.9,4676.8,8.818]
[1755183051275,0.55,4677.6,4676.8,8.818]
[1755183051565,0.55,4677.4,4676.8,8.818]
[1755183051862,2.13803722,4677.2,4677.0,0.001]
[1755183052076,3.0,4678.1,4677.0,0.001]
[1755183052276,0.55,4677.9,4677.0,0.001]
[1755183052595,2.13807701,4677.1,4677.0,0.001]
[1755183052801,0.55,4677.5,4677.0,3.6928]
[1755183052963,2.13789906,4677.5,4677.0,3.6928]
[1755183053164,3.0,4677.9,4677.0,3.6928]
[1755183053364,0.55,4678.0,4677.0,4.6989]
[1755183053590,0.55,4677.8,4677.1,3.691]
[1755183053791,2.1380313,4677.2,4677.1,3.691]
[1755183054000,2.6880313,4677.2,4677.1,3.691]
[1755183054300,2.68807701,4677.1,4677.0,0.0018]
[1755183054501,2.68807701,4677.1,4677.0,3.6928]
[1755183054676,4.22164784,4677.1,4677.0,3.6928]
[1755183055401,3.21434784,4677.1,4677.0,3.6928]
[1755183055567,2.68807701,4677.1,4677.0,3.6928]
[1755183056067,5.68807701,4677.1,4677.0,0.0018]
[1755183056293,6.69537701,4677.1,4677.0,0.0018]
[1755183057294,6.80257701,4677.1,4677.0,0.0018]
[1755183057605,7.12593784,4677.1,4677.0,0.0018]
[1755183058183,7.69663784,4677.1,4677.0,0.0018]
[1755183059627,7.12593784,4677.1,4677.0,0.0018]
[1755183059772,7.69663784,4677.1,4677.0,0.0018]
[1755183061902,7.69663784,4677.1,4676.5,0.001]
[1755183061903,2.6883056,4676.6,4676.5,0.001]
[1755183062083,6.8028056,4676.6,4676.5,1e-08]
[1755183062466,10.4898056,4676.6,4676.5,1e-08]
[1755183063010,5.7955056,4676.6,4676.5,1e-08]
[1755183063206,6.8028056,4676.6,4676.5,1e-08]
[1755183063406,11.1117456,4676.6,4676.5,1e-08]
[1755183063809,11.1117456,4676.6,4676.1,1e-08]
[1755183063810,3.0,4676.5,4676.1,1e-08]
[1755183064113,2.13871719,4675.7,4675.6,1e-08]
[1755183064284,3.80321719,4675.7,4675.6,1e-08]
[1755183064487,2.79591719,4675.7,4675.6,1e-08]
[1755183064669,3.6572,4675.7,4675.6,1e-08]
[1755183064872,5.79591719,4675.7,4675.6,1e-08]
[1755183065106,7.38280891,4675.7,4675.6,1e-08]
[1755183066078,11.06780891,4675.7,4675.6,1e-08]
[1755183066277,6.81210891,4675.7,4675.6,1e-08]
[1755183066500,9.48091719,4675.7,4675.6,1e-08]
[1755183066829,3.1072,4675.7,4675.6,1e-08]
[1755183066974,0.1072,4675.7,4675.6,1e-08]
[1755183067419,6.25321719,4675.7,4675.6,1e-08]
[1755183067630,2.24591719,4675.7,4675.6,1e-08]
[1755183067931,5.79591719,4675.7,4675.6,1e-08]
[1755183068223,6.68997802,4675.7,4675.6,1e-08]
[1755183068525,7.69727802,4675.7,4675.6,1e-08]
[1755183069430,6.68997802,4675.7,4675.6,1e-08]
[1755183069582,5.24591719,4675.7,4675.6,1e-08]
[1755183069928,2.13922046,4674.6,4674.5,0.001]
[1755183070130,2.13922046,4674.6,4674.5,1e-08]
[1755183070131,10.38052046,4674.6,4674.5,1e-08]
[1755183070282,2.6894493,4674.1,4674.0,1e-08]
[1755183070480,9.3724493,4674.1,4674.0,1e-08]
[1755183070720,0.55,4673.8,4673.3,1e-08]
[1755183070929,5.68976976,4673.4,4673.3,1e-08]
[1755183071128,10.38006976,4673.4,4673.3,1e-08]
[1755183071285,11.11680236,4673.4,4673.3,1e-08]
[1755183071488,11.31476651,4673.4,4673.3,1e-08]
[1755183071881,7.63176651,4673.4,4673.3,1e-08]
[1755183072081,11.31476651,4673.4,4673.3,1e-08]
[1755183072620,7.43380236,4673.4,4673.3,1e-08]
[1755183072805,11.11600236,4673.4,4673.3,1e-08]
[1755183073011,11.11600236,4673.4,4673.3,0.0008]
[1755183073012,11.59630991,4673.4,4673.3,0.0008]
[1755183073306,11.31356327,4673.4,4673.3,0.0008]
[1755183073823,0.55,4672.1,4671.0,0.4436]
[1755183074009,3.55,4671.9,4671.0,0.4436]
[1755183074323,3.55,4671.9,4670.6,0.4436]
[1755183074324,0.55,4671.7,4670.6,0.4436]
[1755183074526,0.55,4671.5,4670.6,0.4436]
[1755183074686,3.55,4671.3,4670.6,0.4436]
[1755183074887,3.55,4671.3,4670.5,0.5625]
[1755183075099,0.55,4671.5,4670.5,0.5625]
[1755183075303,0.55,4671.3,4670.5,1.0061]
[1755183076032,0.70766143,4671.3,4670.5,1.0061]
[1755183076332,0.70766143,4671.3,4670.5,3.14719395]
[1755183076533,0.70766143,4671.3,4670.5,1.0061]
[1755183076733,0.70766143,4671.3,4670.5,0.5625]
[1755183076924,0.70766143,4671.3,4670.0,3.14742187]
[1755183077233,0.70766143,4671.3,4670.0,0.5625]
[1755183077405,0.55,4671.2,4670.0,0.5625]
[1755183077935,0.55,4671.2,4670.1,2.14128123]
[1755183078139,0.15766143,4671.3,4670.0,0.5625]
[1755183078296,3.682,4672.3,4670.2,1.0061]
[1755183078497,2.14036795,4672.1,4670.7,2.14099612]
[1755183078703,0.3682,4672.2,4670.8,1.0061]
[1755183078898,0.15915337,4672.2,4671.1,2.14078456]
[1755183079241,0.15915337,4672.2,4670.9,1.0061]
[1755183079242,3.0,4672.5,4670.9,1.0061]
[1755183079443,3.0,4672.5,4671.3,2.14069431]
[1755183079602,0.55,4672.4,4671.0,1.0061]
[1755183079811,0.55,4672.4,4671.1,2.14082336]
[1755183080006,0.1072,4671.6,4671.0,1.1133]
[1755183080207,0.1072,4671.6,4671.0,2.81056076]
[1755183080433,0.1072,4671.6,4671.5,2.14064005]
[1755183080601,0.1072,4671.6,4671.5,3.14674005]
[1755183081143,0.1074648,4673.8,4671.5,3.14674005]
[1755183081144,0.2660057,4673.0,4671.5,1.1347064]
[1755183081334,0.1588057,4673.0,4672.5,2.14014473]
[1755183081533,0.1588057,4673.0,4672.9,2.13999871]
[1755183081846,0.1588057,4673.0,4671.7,3.0]
[1755183081847,0.55,4672.9,4671.4,0.6419]
[1755183082048,0.2660057,4673.0,4670.9,3.681]
[1755183082049,0.55,4672.7,4671.7,0.1072]
[1755183082347,0.55,4671.7,4670.9,3.7882]
[1755183082531,0.1072,4671.8,4671.3,0.4489]
[1755183082706,3.6891,4672.9,4670.9,4.1689]
[1755183082707,0.55,4672.1,4670.9,4.1689]
[1755183082914,0.55,4672.1,4671.5,2.14063841]
[1755183083111,0.55,4672.1,4671.3,0.1072]
[1755183083336,0.55,4672.1,4671.6,2.1405865]
[1755183083664,0.55,4672.1,4671.3,0.108]
[1755183083945,0.55,4671.7,4671.3,0.0008]
[1755183084330,0.55,4672.4,4671.4,2.14064563]
[1755183084538,0.1072,4672.0,4671.4,1.0908]
[1755183084836,0.1072,4672.0,4671.4,0.6419]
[1755183085003,0.1072,4672.0,4671.3,0.0008]
[1755183085207,3.55,4672.1,4671.3,0.0008]
[1755183085456,0.1072,4671.7,4671.3,0.0008]
[1755183086212,0.55,4671.6,4671.3,0.0008]
[1755183086422,0.55,4671.6,4670.8,0.6419]
[1755183086618,0.55,4671.6,4670.8,2.7828556]
[1755183086920,0.55,4671.6,4670.8,0.7491]
[1755183087247,0.55,4671.6,4670.9,2.14090476]
[1755183087451,0.55,4671.6,4670.8,0.7491]
[1755183087652,0.55,4671.6,4670.8,1.19191]
[1755183087852,0.55,4671.6,4670.8,0.55001]
[1755183088555,0.55,4671.6,4670.8,2.69096435]
[1755183088920,0.55,4671.6,4670.8,0.1072]
[1755183089121,3.6891,4672.4,4669.3,5.677]
[1755183089122,0.55,4671.4,4670.1,0.4489]
[1755183089348,0.55,4671.4,4670.2,0.1072]
[1755183089349,0.55,4670.7,4670.2,0.1072]
[1755183089549,0.55,4670.7,4669.7,5.81846252]
[1755183089820,0.6891,4671.5,4669.7,3.677]
[1755183089821,0.55,4670.5,4669.7,3.677]
[1755183090045,0.1072,4670.2,4669.7,3.677]
[1755183090554,0.1072,4670.2,4669.8,2.14141933]
[1755183090754,0.1072,4670.2,4669.7,3.677]
[1755183090956,0.55,4670.1,4669.3,5.127]
[1755183091308,0.55,4670.6,4669.3,10.94563619]
[1755183091426,0.55,4669.8,4669.3,3.677]
[1755183091630,0.1072,4669.4,4669.3,3.677]
[1755183091936,0.1072,4669.4,4669.0,0.001]
[1755183091937,0.55,4669.3,4669.0,0.001]
[1755183092268,0.6572,4669.1,4669.0,0.001]
[1755183092568,0.85562783,4669.1,4669.0,0.001]
[1755183093329,1.29422783,4669.1,4669.0,0.001]
[1755183093527,1.29422783,4669.1,4669.0,0.0018]
[1755183093854,0.85562783,4669.1,4669.0,0.0018]
[1755183094033,1.29422783,4669.1,4669.0,0.0018]
[1755183094262,7.1250682,4669.1,4669.0,0.0018]
[1755183094434,8.35174196,4669.1,4669.0,0.0018]
[1755183095117,8.35094196,4669.1,4669.0,0.0018]
[1755183095725,8.35094196,4669.1,4669.0,1e-08]
[1755183096267,2.14183212,4668.9,4668.8,1e-08]
[1755183096560,6.46795995,4668.9,4668.8,1e-08]
[1755183096733,7.1694159,4668.9,4668.8,1e-08]
[1755183096938,7.1694159,4668.9,4665.6,2.14334705]
[1755183096939,3.0,4668.8,4665.6,2.14334705]
[1755183097137,3.0,4668.8,4665.5,5.7749]
[1755183097138,0.55,4666.2,4665.5,5.7749]
[1755183097325,0.19837963,4666.1,4665.5,0.6419]
[1755183097526,0.1072,4666.0,4665.6,0.4489]
[1755183097721,0.1072,4666.0,4665.7,2.59215649]
[1755183097924,0.19838701,4665.9,4665.6,2.26314521]
[1755183098158,0.55,4667.1,4665.8,1.0908]
[1755183098359,0.55,4666.9,4666.2,2.14305316]
[1755183098544,0.55,4666.7,4664.9,1.0908]
[1755183098735,0.55,4665.9,4665.1,2.14354506]
[1755183098938,0.19831545,4665.8,4665.1,2.14357677]
[1755183099139,0.1072,4665.9,4665.2,1.198]
[1755183099350,0.19847187,4665.8,4665.2,1.198]
[1755183099554,3.269692,4668.6,4665.3,21.83706494]
[1755183099728,0.1072,4667.4,4665.7,0.1072]
[1755183099927,0.1072,4667.4,4665.4,9.94850649]